bitfinex/quotes_BTCUSD_20240827
["timestamp","ask_amount","ask_price","bid_price","bid_amount"]
[1724730631227,0.39531337,63083.0,63082.0,0.01449701]
[1724730631438,0.00271561,63083.0,63082.0,0.01449701]
[1724730631682,0.00271561,63083.0,63082.0,0.57914377]
[1724730633080,0.00071561,63083.0,63082.0,0.58314377]
[1724730633411,0.00271561,63083.0,63082.0,0.58314377]
[1724730633822,0.00071561,63083.0,63082.0,0.58314377]
[1724730634276,0.00071561,63083.0,63082.0,0.58614377]
[1724730634836,0.00071561,63083.0,63082.0,0.49706701]
[1724730639600,0.00052482,63083.0,63082.0,0.49706701]
[1724730640219,0.00052482,63083.0,63082.0,1.00679077]
[1724730640625,0.00052482,63083.0,63082.0,1.38893777]
[1724730642000,0.00052482,63083.0,63082.0,1.38493777]
[1724730642275,0.00052482,63083.0,63082.0,1.38193777]
[1724730642411,0.00052482,63083.0,63082.0,1.38993777]
[1724730642610,0.00052482,63083.0,63082.0,1.38893777]
[1724730642955,0.00052482,63083.0,63082.0,1.40193777]
[1724730643154,0.00052482,63083.0,63082.0,1.39493777]
[1724730643358,0.00052482,63083.0,63082.0,1.40593777]
[1724730646445,0.00052482,63083.0,63082.0,1.4141216]
[1724730649321,0.00052482,63083.0,63082.0,1.88834661]
[1724730649529,0.00052482,63083.0,63082.0,1.90019891]
[1724730649936,0.00052482,63083.0,63082.0,1.96224577]
[1724730650347,0.00052482,63083.0,63082.0,1.95124577]
[1724730650767,0.00052482,63083.0,63082.0,1.93824577]
[1724730651177,0.00052482,63083.0,63082.0,1.95124577]
[1724730651383,0.00052482,63083.0,63082.0,1.9040128]
[1724730651586,0.00052482,63083.0,63082.0,1.90401242]
[1724730651786,0.00052482,63083.0,63082.0,1.91501242]
[1724730651988,0.00052482,63083.0,63082.0,1.90316013]
[1724730652209,0.00052482,63083.0,63082.0,1.90401094]
[1724730652428,0.00052482,63083.0,63082.0,1.89101094]
[1724730652643,0.00052482,63083.0,63082.0,1.90501094]
[1724730652870,0.00052482,63083.0,63082.0,1.91901094]
[1724730653326,0.00052482,63083.0,63082.0,1.90419742]
[1724730655045,0.00052482,63083.0,63082.0,1.89234661]
[1724730655238,0.00052482,63083.0,63082.0,1.9041996]
[1724730657407,0.00052482,63083.0,63082.0,1.91901589]
[1724730658605,0.00052482,63083.0,63082.0,1.9041996]
[1724730658809,0.00052482,63083.0,63082.0,1.91901652]
[1724730660999,0.00052482,63083.0,63082.0,1.9041996]
[1724730661313,0.00052482,63083.0,63082.0,1.91901795]
[1724730661553,0.00052482,63083.0,63082.0,1.89234661]
[1724730661760,0.00052482,63083.0,63082.0,1.91901719]
[1724730663531,0.00052482,63083.0,63082.0,1.9042002]
[1724730663715,0.00052482,63083.0,63082.0,1.80326985]
[1724730663926,0.00052482,63083.0,63082.0,1.89234661]
[1724730664139,0.00052482,63083.0,63082.0,1.16034484]
[1724730664778,0.00052482,63083.0,63082.0,1.24124484]
[1724730665187,0.00052482,63083.0,63082.0,1.22724484]
[1724730665387,0.00052482,63083.0,63082.0,1.24124484]
[1724730665628,0.00052482,63083.0,63082.0,1.26424484]
[1724730665831,0.00052482,63083.0,63082.0,1.25024484]
[1724730666144,0.00052482,63083.0,63082.0,1.26424484]
[1724730666346,0.00052482,63083.0,63082.0,1.81612572]
[1724730666550,0.00052482,63083.0,63082.0,1.91612572]
[1724730667553,0.00052482,63083.0,63082.0,1.87626985]
[1724730667755,0.00052482,63083.0,63082.0,1.90212758]
[1724730668390,0.00052482,63083.0,63082.0,1.88812758]
[1724730668589,0.00052482,63083.0,63082.0,1.90212758]
[1724730669005,0.00052482,63083.0,63082.0,1.91612758]
[1724730669418,0.00052482,63083.0,63082.0,1.90212758]
[1724730669621,0.00052482,63083.0,63082.0,1.53328058]
[1724730669824,0.00052482,63083.0,63082.0,1.62235734]
[1724730670057,0.00052482,63083.0,63082.0,1.62135734]
[1724730670195,0.00052482,63083.0,63082.0,1.60949961]
[1724730670397,0.00052482,63083.0,63082.0,1.67629961]
[1724730670600,0.00052482,63083.0,63082.0,1.68816344]
[1724730670796,0.00052482,63083.0,63082.0,2.00521044]
[1724730671400,0.00052482,63083.0,63082.0,1.68816344]
[1724730671581,0.00052482,63083.0,63082.0,1.62136344]
[1724730672219,0.00052482,63083.0,63082.0,1.62136306]
[1724730674517,0.00052482,63083.0,63082.0,1.62136275]
[1724730677815,0.00052482,63083.0,63082.0,1.60949961]
[1724730678020,0.00052482,63083.0,63082.0,1.62136415]
[1724730679799,0.00052482,63083.0,63082.0,1.93841115]
[1724730680000,0.00052482,63083.0,63082.0,1.62136415]
[1724730680410,0.00052482,63083.0,63082.0,2.05312258]
[1724730680631,0.00052482,63083.0,63082.0,2.00581115]
[1724730680834,0.00052482,63083.0,63082.0,2.0767783]
[1724730681268,0.00052482,63083.0,63082.0,2.34562034]
[1724730681472,0.00052482,63083.0,63082.0,2.35748207]
[1724730681684,0.00052482,63083.0,63082.0,2.36934343]
[1724730681876,0.00052482,63083.0,63082.0,2.3574817]
[1724730682488,0.00052482,63083.0,63082.0,2.45210457]
[1724730683071,0.00033403,63083.0,63082.0,2.45210457]
[1724730684500,0.00033403,63083.0,63082.0,2.35748167]
[1724730685555,0.00033403,63083.0,63082.0,2.47576026]
[1724730688231,0.00033403,63083.0,63082.0,2.26808167]
[1724730688745,0.00033403,63083.0,63082.0,2.18618167]
[1724730689471,0.00033403,63083.0,63082.0,2.32746026]
[1724730691486,0.00033403,63083.0,63082.0,2.31559893]
[1724730691685,0.00033403,63083.0,63082.0,2.28908385]
[1724730691917,0.00033403,63083.0,63082.0,2.35218353]
[1724730694913,0.00033403,63083.0,63082.0,2.34032034]
[1724730695331,0.00033403,63083.0,63082.0,2.35218314]
[1724730696665,0.00033403,63083.0,63082.0,2.34032034]
[1724730698420,0.00033403,63083.0,63082.0,2.34031555]
[1724730699239,0.00033403,63083.0,63082.0,2.35217847]
[1724730703421,0.00033403,63083.0,63082.0,1.98864661]
[1724730703624,0.00033403,63083.0,63082.0,2.34031556]
[1724730704791,0.06543403,63083.0,63082.0,2.2931294]
[1724730704990,0.00033403,63083.0,63082.0,2.2931294]
[1724730705164,0.00033403,63083.0,63082.0,2.19831556]
[1724730706602,0.00033403,63083.0,63082.0,2.29316246]
[1724730706806,0.00033403,63083.0,63082.0,2.30631145]
[1724730707117,0.00033403,63083.0,63082.0,2.21146455]
[1724730708306,0.00033403,63083.0,63082.0,2.21149488]
[1724730708685,0.00033403,63083.0,63082.0,2.24056648]
[1724730708887,0.00033403,63083.0,63082.0,2.3353949]
[1724730709289,0.00033403,63083.0,63082.0,2.24056648]
[1724730709495,0.00033403,63083.0,63082.0,2.33539634]
[1724730709733,0.00033403,63083.0,63082.0,2.24056648]
[1724730709935,0.00033403,63083.0,63082.0,2.22336359]
[1724730710385,0.00033403,63083.0,63082.0,2.34190476]
[1724730710759,0.00033403,63083.0,63082.0,2.24056637]
[1724730711159,0.00033403,63083.0,63082.0,2.35910754]
[1724730712358,0.00033403,63083.0,63082.0,2.24056637]
[1724730713465,0.00033403,63083.0,63082.0,2.22869766]
[1724730713666,0.00033403,63083.0,63082.0,2.24056559]
[1724730717606,0.00033403,63083.0,63082.0,2.38256559]
[1724730717969,0.00033403,63083.0,63082.0,2.48180106]
[1724730718218,0.00033403,63083.0,63082.0,2.48174627]
[1724730718391,0.00033403,63083.0,63082.0,2.79879327]
[1724730719030,0.00033403,63083.0,63082.0,2.78479327]
[1724730719235,0.00033403,63083.0,63082.0,2.79879327]
[1724730719929,0.00033403,63083.0,63082.0,2.78479327]
[1724730720353,0.00033403,63083.0,63082.0,2.79879327]
[1724730721959,0.00033403,63083.0,63082.0,3.27436327]
[1724730722709,0.00033403,63083.0,63082.0,3.27434569]
[1724730723153,0.0009064,63099.0,63098.0,1.59592776]
[1724730723356,0.0009064,63099.0,63098.0,2.32145014]
[1724730723552,0.0009064,63099.0,63098.0,2.34516386]
[1724730724226,0.1454064,63099.0,63098.0,1.8596201]
[1724730724435,0.1454064,63099.0,63098.0,1.232384]
[1724730725064,0.1454064,63099.0,63098.0,1.246384]
[1724730725277,0.0009064,63099.0,63098.0,1.76788103]
[1724730725463,0.0009064,63099.0,63098.0,1.79155624]
[1724730725711,0.0009064,63099.0,63098.0,2.16682728]
[1724730725925,0.0009064,63099.0,63098.0,2.0851243]
[1724730726364,0.0009064,63099.0,63098.0,2.08511203]
[1724730726538,0.0009064,63099.0,63098.0,2.18156589]
[1724730726741,0.0009064,63099.0,63098.0,2.19556589]
[1724730727374,0.0009064,63099.0,63098.0,2.10093089]
[1724730728341,0.0009064,63099.0,63098.0,2.17187966]
[1724730728967,0.0009064,63099.0,63098.0,2.18028526]
[1724730729178,0.0009064,63099.0,63098.0,2.1654664]
[1724730729377,0.0009064,63099.0,63098.0,1.74293461]
[1724730729811,0.0009064,63099.0,63098.0,2.21838461]
[1724730730417,0.0009064,63099.0,63098.0,2.26562528]
[1724730731417,0.0009064,63099.0,63098.0,2.26562061]
[1724730731803,0.0009064,63099.0,63098.0,2.2656132]
[1724730732048,0.0009064,63099.0,63098.0,2.21838461]
[1724730735837,0.0009064,63099.0,63098.0,2.35958461]
[1724730736240,0.0009064,63099.0,63098.0,2.29638461]
[1724730739643,0.0009064,63099.0,63098.0,2.35841098]
[1724730743326,0.0009064,63099.0,63098.0,2.3436079]
[1724730743663,0.0009064,63099.0,63098.0,2.35841028]
[1724730743861,0.0009064,63099.0,63098.0,2.31118699]
[1724730746339,0.0009064,63099.0,63098.0,2.31118706]
[1724730746536,0.0009064,63099.0,63098.0,2.34441035]
[1724730746804,0.0009064,63099.0,63098.0,2.36809423]
[1724730746977,0.0009064,63099.0,63098.0,2.40577809]
[1724730747362,0.0009064,63099.0,63098.0,2.39177809]
[1724730747581,0.0009064,63099.0,63098.0,2.40577809]
[1724730749248,0.0009064,63099.0,63098.0,2.25687092]
[1724730749404,0.0009064,63099.0,63098.0,2.34594768]
[1724730749604,0.0009064,63099.0,63098.0,2.33114526]
[1724730749844,0.0009064,63099.0,63098.0,2.34595033]
[1724730750104,0.1459064,63099.0,63098.0,2.34595033]
[1724730750334,0.1459064,63099.0,63098.0,1.99017826]
[1724730751404,0.1459064,63099.0,63098.0,1.97617826]
[1724730751602,0.1459064,63099.0,63098.0,1.99017826]
[1724730751820,0.1459064,63099.0,63098.0,2.01317826]
[1724730752631,0.1459064,63099.0,63098.0,1.99917826]
[1724730752827,0.0009064,63099.0,63098.0,2.02897839]
[1724730753073,0.0009064,63099.0,63098.0,2.01417826]
[1724730753271,0.0009064,63099.0,63098.0,2.02897654]
[1724730753887,0.0009064,63099.0,63098.0,2.00529265]
[1724730756305,0.0009064,63099.0,63098.0,1.99049437]
[1724730756509,0.0009064,63099.0,63098.0,2.005286]
[1724730756870,0.0009064,63099.0,63098.0,2.004286]
[1724730757071,0.0009064,63099.0,63098.0,1.98949437]
[1724730757295,0.0009064,63099.0,63098.0,1.99049437]
[1724730757697,0.0009064,63099.0,63098.0,1.98949437]
[1724730760444,0.0009064,63099.0,63098.0,1.99049437]
[1724730760946,0.0009064,63099.0,63098.0,1.98949437]
[1724730761245,0.1459064,63099.0,63098.0,1.98949437]
[1724730762206,0.1459064,63099.0,63098.0,1.90041761]
[1724730762807,0.1459064,63099.0,63098.0,1.98949437]
[1724730769864,0.1459064,63099.0,63098.0,1.89201201]
[1724730769991,0.1459064,63099.0,63098.0,1.0019]
[1724730771035,0.1459064,63099.0,63098.0,0.50345]
[1724730771841,0.1459064,63099.0,63098.0,0.47545]
[1724730772491,0.1459064,63099.0,63098.0,0.48445]
[1724730772815,0.1459064,63099.0,63098.0,0.47545]
[1724730773017,0.1459064,63099.0,63098.0,0.48145]
[1724730773644,0.1459064,63099.0,63098.0,0.48645]
[1724730790664,0.1459064,63099.0,63098.0,0.644933]
[1724730790869,0.1459064,63099.0,63098.0,0.9619]
[1724730790870,0.0009064,63099.0,63098.0,0.9619]
[1724730791075,0.0009064,63099.0,63098.0,1.301867]
[1724730791477,0.02575003,63099.0,63098.0,1.682634]
[1724730791734,0.02575003,63099.0,63098.0,1.77808651]
[1724730791932,0.02575003,63099.0,63098.0,1.77208651]
[1724730792073,0.1498064,63099.0,63098.0,0.53259917]
[1724730792272,0.1498064,63099.0,63098.0,0.673933]
[1724730792546,0.1498064,63099.0,63098.0,0.663933]
[1724730792857,0.1498064,63099.0,63098.0,0.9869]
[1724730793015,0.1498064,63099.0,63098.0,0.9979]
[1724730794150,0.1498064,63099.0,63098.0,0.9739]
[1724730794589,0.1498064,63099.0,63098.0,0.49545]
[1724730797001,0.1498064,63099.0,63098.0,0.50790517]
[1724730810006,0.1498064,63099.0,63098.0,0.66638817]
[1724730810688,0.1498064,63099.0,63098.0,0.50790517]
[1724730813999,0.1498064,63099.0,63098.0,0.66638817]
[1724730814422,0.0675064,63099.0,63098.0,0.66638817]
[1724730814929,0.0675064,63099.0,63098.0,0.68355687]
[1724730815129,0.0675064,63099.0,63098.0,0.66638817]
[1724730815531,0.0675064,63099.0,63098.0,0.82515706]
[1724730815532,0.0009064,63099.0,63098.0,0.82515706]
[1724730815980,0.0009064,63099.0,63098.0,0.76375706]
[1724730816191,0.0009064,63099.0,63098.0,0.76375696]
[1724730817445,0.0009064,63099.0,63098.0,0.74658817]
[1724730817750,0.0009064,63099.0,63098.0,0.76375981]
[1724730818532,0.1425064,63099.0,63098.0,0.52507681]
[1724730818740,0.1425064,63099.0,63098.0,0.66638817]
[1724730821454,0.1673503,63099.0,63098.0,0.50790517]
[1724730822654,0.1425064,63099.0,63098.0,0.50790517]
[1724730822862,0.1425064,63099.0,63098.0,0.52507703]
[1724730822994,0.1425064,63099.0,63098.0,0.50790517]
[1724730823191,0.1425064,63099.0,63098.0,0.52507717]
[1724730823428,0.1425064,63099.0,63098.0,0.52507689]
[1724730823876,0.1425064,63099.0,63098.0,0.52507716]
[1724730824194,0.1425064,63099.0,63098.0,0.50790517]
[1724730825522,0.1425064,63099.0,63098.0,0.52507749]
[1724730825744,0.1425064,63099.0,63098.0,0.50790517]
[1724730825745,0.16735055,63099.0,63098.0,0.50790517]
[1724730826715,0.08755055,63099.0,63098.0,0.50790517]
[1724730832396,0.0627064,63099.0,63098.0,0.50790517]
[1724730834503,0.0009064,63099.0,63098.0,0.50790517]
[1724730836593,0.0009064,63099.0,63098.0,0.52508411]
[1724730838373,0.0009064,63099.0,63098.0,0.52508685]
[1724730842376,0.0009064,63099.0,63098.0,0.50790517]
[1724730842594,0.0009064,63099.0,63098.0,0.52508433]
[1724730843954,0.0009064,63099.0,63098.0,0.50790517]
[1724730844155,0.0009064,63099.0,63098.0,0.52508276]
[1724730847530,0.0009064,63099.0,63098.0,0.52507999]
[1724730854019,0.0009064,63099.0,63098.0,0.50790517]
[1724730854213,0.0009064,63099.0,63098.0,0.52508031]
[1724730857395,0.0009064,63099.0,63098.0,0.52508019]
[1724730857801,0.02575045,63099.0,63098.0,0.52508019]
[1724730860538,0.02575045,63099.0,63098.0,0.50790517]
[1724730860853,0.02575045,63099.0,63098.0,0.58570517]
[1724730861064,0.02575045,63099.0,63098.0,0.6028761]
[1724730863069,0.02575045,63099.0,63098.0,0.7613591]
[1724730863272,0.02575045,63099.0,63098.0,0.6686761]
[1724730864001,0.02575045,63099.0,63098.0,0.65150517]
[1724730864233,0.02575045,63099.0,63098.0,0.66867456]
[1724730867269,0.02575045,63099.0,63098.0,1.14412358]
[1724730867494,0.02575045,63099.0,63098.0,0.82715658]
[1724730868589,0.02575045,63099.0,63098.0,1.48409058]
[1724730869355,0.02575045,63099.0,63098.0,1.80105758]
[1724730869581,0.02575045,63099.0,63098.0,1.48409058]
[1724730875956,0.0009064,63099.0,63098.0,1.48409058]
[1724730876968,0.0009064,63099.0,63098.0,1.46692217]
[1724730877107,0.0009064,63099.0,63098.0,1.48408436]
[1724730879319,0.02574876,63099.0,63098.0,1.48408436]
[1724730880673,0.02574876,63099.0,63098.0,1.46692217]
[1724730880874,0.02574876,63099.0,63098.0,1.48408299]
[1724730882502,0.0009064,63099.0,63098.0,1.48408299]
[1724730883161,0.0009064,63099.0,63098.0,1.16711599]
[1724730883990,0.0009064,63099.0,63098.0,1.16710753]
[1724730884848,0.0009064,63099.0,63098.0,1.48407453]
[1724730886872,0.0009064,63099.0,63098.0,1.46692217]
[1724730887076,0.0009064,63099.0,63098.0,1.49651479]
[1724730887680,0.0009064,63099.0,63098.0,1.11374779]
[1724730890686,0.0009064,63099.0,63098.0,1.11375146]
[1724730890994,0.0009064,63099.0,63098.0,1.43071846]
[1724730891249,0.0009064,63099.0,63098.0,1.11375146]
[1724730893423,0.0009064,63099.0,63098.0,1.09659523]
[1724730893635,0.0009064,63099.0,63098.0,1.11374916]
[1724730896905,0.0009064,63099.0,63098.0,1.43071616]
[1724730898395,0.0009064,63099.0,63098.0,1.11374916]
[1724730899018,0.0009064,63099.0,63098.0,1.43071616]
[1724730899458,0.0009064,63099.0,63098.0,1.11374916]
[1724730899662,0.0009064,63099.0,63098.0,1.43071616]
[1724730900078,0.0009064,63099.0,63098.0,1.41356223]
[1724730900264,0.0009064,63099.0,63098.0,1.4307098]
[1724730900518,0.0009064,63099.0,63098.0,1.41356223]
[1724730900725,0.0009064,63099.0,63098.0,1.43070933]
[1724730902276,0.0009064,63099.0,63098.0,1.41356223]
[1724730902505,0.0009064,63099.0,63098.0,1.43070702]
[1724730905782,0.0009064,63099.0,63098.0,1.41356223]
[1724730905905,0.0009064,63099.0,63098.0,1.43070774]
[1724730908482,0.0009064,63099.0,63098.0,1.5197845]
[1724730908613,0.0009064,63099.0,63098.0,1.50263899]
[1724730908820,0.0009064,63099.0,63098.0,1.51978424]
[1724730909225,0.0009064,63099.0,63098.0,1.50263899]
[1724730909426,0.0009064,63099.0,63098.0,1.5197842]
[1724730909626,0.0009064,63099.0,63098.0,1.50263899]
[1724730909829,0.0009064,63099.0,63098.0,1.51978423]
[1724730913168,0.0009064,63099.0,63098.0,2.08544208]
[1724730913386,0.0009064,63099.0,63098.0,2.07065717]
[1724730913540,0.0009064,63099.0,63098.0,2.42227151]
[1724730914548,0.0009064,63099.0,63098.0,2.41127151]
[1724730914886,0.0009064,63099.0,63098.0,2.49617942]
[1724730915215,0.0009064,63099.0,63098.0,2.48162547]
[1724730915374,0.0009064,63099.0,63098.0,2.50462547]
[1724730915572,0.0009064,63099.0,63098.0,2.15301113]
[1724730915778,0.0009064,63099.0,63098.0,2.12403796]
[1724730915989,0.0009064,63099.0,63098.0,2.14401121]
[1724730916211,0.0009064,63099.0,63098.0,2.15801121]
[1724730916613,0.0009064,63099.0,63098.0,2.0871033]
[1724730917590,0.0009064,63099.0,63098.0,2.1343505]
[1724730918633,0.0009064,63099.0,63098.0,2.1343465]
[1724730919179,0.0009064,63099.0,63098.0,2.13434495]
[1724730919607,0.0009064,63099.0,63098.0,2.11720088]
[1724730919810,0.0009064,63099.0,63098.0,2.13434659]
[1724730921275,0.0009064,63099.0,63098.0,2.11720088]
[1724730921522,0.0009064,63099.0,63098.0,2.13435072]
[1724730922506,0.0009064,63099.0,63098.0,2.1343536]
[1724730925011,0.0009064,63099.0,63098.0,2.4513206]
[1724730925768,0.0009064,63099.0,63098.0,2.42234025]
[1724730926006,0.0009064,63099.0,63098.0,2.45132691]
[1724730926959,0.0009064,63099.0,63098.0,2.85017209]
[1724730927162,0.0009064,63099.0,63098.0,2.86911076]
[1724730928330,0.0009064,63099.0,63098.0,2.86753984]
[1724730928695,0.0009064,63099.0,63098.0,2.77305074]
[1724730929263,0.0009064,63099.0,63098.0,2.86753984]
[1724730929466,0.0009064,63099.0,63098.0,2.9740083]
[1724730929679,0.0009064,63099.0,63098.0,3.01483309]
[1724730929864,0.0009064,63099.0,63098.0,3.33180009]
[1724730930068,0.0009064,63099.0,63098.0,3.31780009]
[1724730930268,0.0009064,63099.0,63098.0,3.18568043]
[1724730930522,0.0009064,63099.0,63098.0,3.21368043]
[1724730930727,0.0009064,63099.0,63098.0,3.19968043]
[1724730930867,0.0009064,63099.0,63098.0,3.18568043]
[1724730931297,0.0009064,63099.0,63098.0,3.12809241]
[1724730931522,0.0009064,63099.0,63098.0,3.19964889]
[1724730931722,0.0009064,63099.0,63098.0,3.18564889]
[1724730932144,0.0009064,63099.0,63098.0,3.21364889]
[1724730932677,0.0009064,63099.0,63098.0,3.19964889]
[1724730932891,0.0009064,63099.0,63098.0,3.21364889]
[1724730933273,0.0009064,63099.0,63098.0,3.33157406]
[1724730933510,0.0009064,63099.0,63098.0,2.80760513]
[1724730933717,0.0009064,63099.0,63098.0,2.99101664]
[1724730935319,0.0009064,63099.0,63098.0,2.97387094]
[1724730935521,0.0009064,63099.0,63098.0,2.99101898]
[1724730937904,0.0009064,63099.0,63098.0,2.99251859]
[1724730939057,0.0009064,63099.0,63098.0,2.96886173]
[1724730939262,0.0009064,63099.0,63098.0,2.99251804]
[1724730939642,0.0009064,63099.0,63098.0,3.30948504]
[1724730940445,0.0009064,63099.0,63098.0,2.99251804]
[1724730941049,0.0009064,63099.0,63098.0,3.30948504]
[1724730941944,0.0009064,63099.0,63098.0,3.28582216]
[1724730942154,0.0009064,63099.0,63098.0,3.30947699]
[1724730942817,0.0009064,63099.0,63098.0,3.30945462]
[1724730944004,0.0009064,63099.0,63098.0,3.30946141]
[1724730944648,0.0009064,63099.0,63098.0,3.29053754]
[1724730945394,0.0009064,63099.0,63098.0,3.25505137]
[1724730945830,0.0009064,63099.0,63098.0,3.3094667]
[1724730947129,0.0009064,63099.0,63098.0,3.30946686]
[1724730947260,0.0009064,63099.0,63098.0,3.30949333]
[1724730948479,0.0009064,63099.0,63098.0,3.21518208]
[1724730949714,0.0009064,63099.0,63098.0,3.14361962]
[1724730950095,0.0009064,63099.0,63098.0,3.21518236]
[1724730950503,0.0009064,63099.0,63098.0,3.33307142]
[1724730951113,0.0009064,63099.0,63098.0,3.33307141]
[1724730953590,0.0009064,63099.0,63098.0,3.21518235]
[1724730954383,0.0009064,63099.0,63098.0,3.21517029]
[1724730958005,0.0009064,63099.0,63098.0,3.2151624]
[1724730960512,0.0009064,63099.0,63098.0,3.31436631]
[1724730960973,0.0009064,63099.0,63098.0,2.92585653]
[1724730961123,0.0009064,63099.0,63098.0,2.97374438]
[1724730961328,0.0009064,63099.0,63098.0,2.92585653]
[1724730961528,0.0009064,63099.0,63098.0,3.2907113]
[1724730962109,0.0009064,63099.0,63098.0,3.31436236]
[1724730963244,0.0009064,63099.0,63098.0,3.21436236]
[1724730963434,0.0009064,63099.0,63098.0,3.31436236]
[1724730963904,0.0009064,63099.0,63098.0,3.31436622]
[1724730964697,0.0009064,63099.0,63098.0,3.21436622]
[1724730964879,0.0009064,63099.0,63098.0,3.31436622]
[1724730965980,0.0009064,63099.0,63098.0,3.31436585]
[1724730967413,0.0009064,63099.0,63098.0,3.31435929]
[1724730967642,0.0009064,63099.0,63098.0,3.29135929]
[1724730967851,0.0009064,63099.0,63098.0,3.31435929]
[1724730968223,0.0009064,63099.0,63098.0,3.21435929]
[1724730968481,0.0009064,63099.0,63098.0,3.45605526]
[1724730970603,0.0009064,63099.0,63098.0,3.27355797]
[1724730970812,0.0009064,63099.0,63098.0,3.34332626]
[1724730971027,0.0009064,63099.0,63098.0,3.40166821]
[1724730971237,0.0009064,63099.0,63098.0,3.45604566]
[1724730971460,0.0009064,63099.0,63098.0,3.33797756]
[1724730972492,0.0009064,63099.0,63098.0,3.33797837]
[1724730973569,0.0009064,63099.0,63098.0,3.35275634]
[1724730974273,0.0009064,63099.0,63098.0,3.31671084]
[1724730974475,0.0009064,63099.0,63098.0,3.35276344]
[1724730975656,0.0009064,63099.0,63098.0,3.3527625]
[1724730975861,0.0009064,63099.0,63098.0,3.32912033]
[1724730977136,0.0009064,63099.0,63098.0,3.34143019]
[1724730977343,0.0009064,63099.0,63098.0,3.30300722]
[1724730977519,0.0009064,63099.0,63098.0,3.34142973]
[1724730978932,0.0009064,63099.0,63098.0,3.3030042]
[1724730979153,0.0009064,63099.0,63098.0,3.34142423]
[1724730980419,0.0009064,63099.0,63098.0,3.02445723]
[1724730980873,0.0009064,63099.0,63098.0,3.34142572]
[1724730981095,0.0009064,63099.0,63098.0,3.02446416]
[1724730981840,0.0009064,63099.0,63098.0,3.34143116]
[1724730982405,0.0009064,63099.0,63098.0,3.02446416]
[1724730982627,0.0009064,63099.0,63098.0,3.0244617]
[1724730982840,0.0009064,63099.0,63098.0,3.3414287]
[1724730983249,0.0009064,63099.0,63098.0,3.0244617]
[1724730983897,0.0009064,63099.0,63098.0,3.3414287]
[1724730984103,0.0009064,63099.0,63098.0,3.34142965]
[1724730984892,0.0009064,63099.0,63098.0,3.02446265]
[1724730985732,0.0009064,63099.0,63098.0,3.34142965]
[1724730986318,0.0009064,63099.0,63098.0,3.02446265]
[1724730987192,0.0009064,63099.0,63098.0,2.7954655]
[1724730987437,0.0009064,63099.0,63098.0,2.66983907]
[1724730987640,0.1489064,63099.0,63098.0,2.78256109]
[1724730988050,0.1489064,63099.0,63098.0,2.76856109]
[1724730988453,0.1489064,63099.0,63098.0,2.78256109]
[1724730988654,0.1489064,63099.0,63098.0,2.67948433]
[1724730988862,0.1489064,63099.0,63098.0,2.76856109]
[1724730989077,0.1489064,63099.0,63098.0,2.78256109]
[1724730989478,0.1489064,63099.0,63098.0,2.76856109]
[1724730989744,0.1489064,63099.0,63098.0,2.75456109]
[1724730989958,0.1489064,63099.0,63098.0,2.76856109]
[1724730990147,0.1489064,63099.0,63098.0,2.78256109]
[1724730990585,0.1489064,63099.0,63098.0,2.72703202]
[1724730990786,0.1489064,63099.0,63098.0,2.76782233]
[1724730990961,0.1489064,63099.0,63098.0,2.78260355]
[1724730991722,0.1489064,63099.0,63098.0,2.7589536]
[1724730991950,0.1489064,63099.0,63098.0,2.66987684]
[1724730992148,0.1489064,63099.0,63098.0,2.85997481]
[1724730992350,0.1489064,63099.0,63098.0,2.87711659]
[1724730992556,0.1489064,63099.0,63098.0,2.75895502]
[1724730993233,0.1489064,63099.0,63098.0,2.74495502]
[1724730993515,0.1489064,63099.0,63098.0,2.86311659]
[1724730993784,0.1489064,63099.0,63098.0,2.87711659]
[1724730994577,0.1489064,63099.0,63098.0,2.75895502]
[1724730994957,0.0667064,63099.0,63098.0,2.75895502]
[1724730995343,0.0667064,63099.0,63098.0,2.78259119]
[1724730995710,0.0009064,63099.0,63098.0,2.78259119]
[1724730997056,0.0009064,63099.0,63098.0,2.696281]
[1724730997268,0.0009064,63099.0,63098.0,2.78259322]
[1724730997586,0.0009064,63099.0,63098.0,2.87705725]
[1724730997789,0.0009064,63099.0,63098.0,2.75894389]
[1724730998214,0.0009064,63099.0,63098.0,2.78259184]
[1724730999040,0.0009064,63099.0,63098.0,3.23885884]
[1724731000310,0.0009064,63099.0,63098.0,3.32501786]
[1724731000507,0.0009064,63099.0,63098.0,3.33804677]
[1724731000857,0.0009064,63099.0,63098.0,3.33803874]
[1724731002664,0.0009064,63099.0,63098.0,3.23883649]
[1724731005913,0.0009064,63099.0,63098.0,3.23883679]
[1724731006920,0.0009064,63099.0,63098.0,3.152548]
[1724731007125,0.0009064,63099.0,63098.0,3.21992304]
[1724731007332,0.0009064,63099.0,63098.0,3.2388369]
[1724731008381,0.1125,63111.0,63110.0,1.743983]
[1724731008592,0.05,63111.0,63110.0,2.77004988]
[1724731008801,0.05,63111.0,63110.0,2.67093099]
[1724731009022,0.05,63111.0,63110.0,2.77004559]
[1724731009227,0.05,63111.0,63110.0,2.77820465]
[1724731009447,0.05,63111.0,63110.0,2.67950416]
[1724731009448,0.1887,63111.0,63110.0,2.67950416]
[1724731009662,0.1887,63111.0,63110.0,2.39340132]
[1724731009871,0.1887,63111.0,63110.0,2.32258354]
[1724731010079,0.1887,63111.0,63110.0,2.30780709]
[1724731010286,0.1887,63111.0,63110.0,2.36902374]
[1724731010722,0.1887,63111.0,63110.0,2.34006748]
[1724731010929,0.1887,63111.0,63110.0,2.40662366]
[1724731011134,0.1887,63111.0,63110.0,2.42139864]
[1724731011365,0.1887,63111.0,63110.0,2.68774974]
[1724731011564,0.189524,63111.0,63110.0,2.70174974]
[1724731011818,0.189524,63111.0,63110.0,2.77256084]
[1724731012295,0.189524,63111.0,63110.0,2.70174974]
[1724731012546,0.189524,63111.0,63110.0,2.77256105]
[1724731012828,0.189524,63111.0,63110.0,2.70174974]
[1724731013066,0.189524,63111.0,63110.0,2.79617303]
[1724731013067,0.050824,63111.0,63110.0,2.79617303]
[1724731013547,0.050824,63111.0,63110.0,2.75777006]
[1724731013756,0.050824,63111.0,63110.0,2.70174297]
[1724731013988,0.050824,63111.0,63110.0,2.79616626]
[1724731014665,0.050824,63111.0,63110.0,2.70174297]
[1724731015151,0.050824,63111.0,63110.0,2.70087283]
[1724731017568,0.050824,63111.0,63110.0,2.77164229]
[1724731018010,0.050824,63111.0,63110.0,2.26149733]
[1724731018216,0.189524,63111.0,63110.0,2.32398232]
[1724731019892,0.189524,63111.0,63110.0,2.30685083]
[1724731020100,0.189524,63111.0,63110.0,2.3239825]
[1724731028219,0.189524,63111.0,63110.0,2.33875806]
[1724731028609,0.189524,63111.0,63110.0,2.38594677]
[1724731028816,0.189524,63111.0,63110.0,2.38594576]
[1724731029262,0.189524,63111.0,63110.0,2.36881351]
[1724731029468,0.189524,63111.0,63110.0,2.3216248]
[1724731029637,0.189524,63111.0,63110.0,2.3859444]
[1724731029839,0.189524,63111.0,63110.0,2.33875683]
[1724731030040,0.189524,63111.0,63110.0,2.3859444]
[1724731030370,0.189524,63111.0,63110.0,2.33875683]
[1724731031185,0.113324,63111.0,63110.0,2.33875683]